fUSD/lending_fUSD_20251031
["ID","MTS","AMOUNT","RATE_DAILY","PERIOD"]
[392765481,1761928240843,-151.0,0.0001498,2]
[392765483,1761928240853,-151.0,0.0001498,2]
[392765485,1761928240862,-151.0,0.0001498,2]
[392765487,1761928240871,-151.0,0.0001498,2]
[392765489,1761928240881,-153.558489,0.0001498,2]
[392765490,1761928240891,-151.0,0.0001498,2]
[392765492,1761928240901,-151.0,0.0001498,2]
[392765494,1761928240910,-151.0,0.0001498,2]
[392765497,1761928240920,-151.0,0.0001498,2]
[392765499,1761928240930,-231.182901,0.0001498,2]
[392765500,1761928240940,-231.182901,0.0001498,2]
[392765502,1761928240949,-151.0,0.0001498,2]
[392765504,1761928240959,-231.182901,0.0001498,2]
[392765507,1761928240969,-151.0,0.0001498,2]
[392765509,1761928240981,-157.579447,0.0001498,2]
[392765511,1761928240990,-231.182901,0.0001498,2]
[392765513,1761928241000,-151.0,0.0001498,2]
[392765515,1761928241009,-231.182901,0.0001498,2]
[392765517,1761928241019,-231.182901,0.0001498,2]
[392765519,1761928241028,-151.0,0.0001498,2]
[392765521,1761928241037,-172.163084,0.0001498,2]
[392765523,1761928241046,-231.182901,0.0001498,2]
[392765525,1761928241055,-231.182901,0.0001498,2]
[392765527,1761928241064,-186.413002,0.0001498,2]
[392765529,1761928241074,-151.0,0.0001498,2]
[392765531,1761928241083,-151.0,0.0001498,2]
[392765532,1761928241092,-151.0,0.0001498,2]
[392765534,1761928241101,-151.0,0.0001498,2]
[392765537,1761928241111,-151.0,0.0001498,2]
[392765538,1761928241120,-151.0,0.0001498,2]
[392765541,1761928241129,-151.0,0.0001498,2]
[392765543,1761928241138,-151.0,0.0001498,2]
[392765545,1761928241151,-151.0,0.0001498,2]
[392765547,1761928241160,-151.0,0.0001498,2]
[392765549,1761928241169,-151.0,0.0001498,2]
[392765551,1761928241178,-275.400951,0.0001498,2]
[392765553,1761928241187,-151.0,0.0001498,2]
[392765554,1761928241196,-151.0,0.0001498,2]
[392765556,1761928241205,-151.0,0.0001498,2]
[392765558,1761928241214,-151.0,0.0001498,2]
[392765560,1761928241224,-151.0,0.0001498,2]
[392765562,1761928241233,-151.0,0.0001498,2]
[392765564,1761928241243,-151.0,0.0001498,2]
[392765566,1761928241260,-287.964,0.0001498,2]
[392765568,1761928241269,-151.0,0.0001498,2]
[392765570,1761928241280,-151.0,0.0001498,2]
[392765571,1761928241289,-151.0,0.0001498,2]
[392765573,1761928241298,-154.2199,0.0001498,2]
[392765575,1761928241307,-153.753515,0.0001498,2]
[392765577,1761928241317,-151.0,0.0001498,2]
[392765579,1761928241326,-151.0,0.0001498,2]
[392765581,1761928241336,-151.0,0.0001498,2]
[392765583,1761928241345,-151.0,0.0001498,2]
[392765585,1761928241354,-151.0,0.0001498,2]
[392765587,1761928241364,-151.0,0.0001498,2]
[392765589,1761928241373,-158.729556,0.0001498,2]
[392765591,1761928241382,-151.0,0.0001498,2]
[392765593,1761928241391,-216.108556,0.0001498,2]
[392765595,1761928241403,-151.0,0.0001498,2]
[392765597,1761928241412,-151.0,0.0001498,2]
[392765599,1761928241421,-151.0,0.0001498,2]
[392765601,1761928241430,-151.0,0.0001498,2]
[392765603,1761928241439,-151.0,0.0001498,2]
[392765604,1761928241449,-151.0,0.0001498,2]
[392765606,1761928241458,-151.0,0.0001498,2]
[392765608,1761928241467,-151.0,0.0001498,2]
[392765610,1761928241480,-151.0,0.0001498,2]
[392765613,1761928241490,-151.0,0.0001498,2]
[392765614,1761928241499,-151.0,0.0001498,2]
[392765639,1761928241707,-158.608999,0.0001498,2]
[392765641,1761928241716,-151.0,0.0001498,2]
[392765643,1761928241725,-159.82648,0.0001498,2]
[392765645,1761928241735,-156.311484,0.0001498,2]
[392765646,1761928241744,-151.0,0.0001498,2]
[392765649,1761928241755,-151.0,0.0001498,2]
[392765651,1761928241763,-153.084881,0.0001498,2]
[392765653,1761928241771,-151.0,0.0001498,2]
[392765655,1761928241780,-151.0,0.0001498,2]
[392765657,1761928241789,-151.0,0.0001498,2]
[392765659,1761928241799,-151.0,0.0001498,2]
[392765661,1761928241808,-151.0,0.0001498,2]
[392765663,1761928241817,-152.595001,0.0001498,2]
[392765665,1761928241826,-151.0,0.0001498,2]
[392765667,1761928241835,-151.0,0.0001498,2]
[392765669,1761928241844,-151.0,0.0001498,2]
[392765671,1761928241853,-151.0,0.0001498,2]
[392765673,1761928241861,-151.0,0.0001498,2]
[392765675,1761928241869,-151.0,0.0001498,2]
[392765677,1761928241878,-151.0,0.0001498,2]
[392765679,1761928241887,-151.0,0.0001498,2]
[392765681,1761928241895,-151.0,0.0001498,2]
[392765683,1761928241904,-151.0,0.0001498,2]
[392765685,1761928241912,-151.0,0.0001498,2]
[392765687,1761928241921,-152.88356,0.0001498,2]
[392765689,1761928241930,-151.0,0.0001498,2]
[392765691,1761928241938,-151.0,0.0001498,2]
[392765692,1761928241946,-151.0,0.0001498,2]
[392765694,1761928241955,-151.0,0.0001498,2]
[392765696,1761928241963,-151.0,0.0001498,2]
[392765698,1761928241973,-151.0,0.0001498,2]
[392765701,1761928241981,-151.0,0.0001498,2]
[392765703,1761928241991,-151.0,0.0001498,2]
[392765705,1761928242000,-151.0,0.0001498,2]
[392765707,1761928242009,-151.0,0.0001498,2]
[392765709,1761928242021,-157.486604,0.0001498,2]
[392765711,1761928242030,-151.0,0.0001498,2]
[392765713,1761928242039,-151.0,0.0001498,2]
[392765715,1761928242048,-151.0,0.0001498,2]
[392765717,1761928242057,-152.115133,0.0001498,2]
[392765719,1761928242066,-151.0,0.0001498,2]
[392765721,1761928242075,-151.0,0.0001498,2]
[392765723,1761928242088,-151.0,0.0001498,2]
[392765725,1761928242097,-151.0,0.0001498,2]
[392765727,1761928242106,-151.0,0.0001498,2]
[392765729,1761928242115,-151.0,0.0001498,2]
[392765730,1761928242124,-151.0,0.0001498,2]
[392765732,1761928242133,-1034.994222,0.0001498,2]
[392765734,1761928242142,-1034.994222,0.0001498,2]
[392765736,1761928242151,-151.0,0.0001498,2]
[392765738,1761928242160,-151.0,0.0001498,2]
[392765740,1761928242169,-151.0,0.0001498,2]
[392765741,1761928242179,-151.0,0.0001498,2]
[392765742,1761928242188,-153.518828,0.0001498,2]
[392765743,1761928242197,-151.0,0.0001498,2]
[392765744,1761928242207,-1034.994222,0.0001498,2]
[392765745,1761928242217,-151.0,0.0001498,2]
[392765747,1761928242226,-1034.994222,0.0001498,2]
[392765749,1761928242236,-151.0,0.0001498,2]
[392765751,1761928242245,-1034.994222,0.0001498,2]
[392765753,1761928242255,-155.44974,0.0001498,2]
[392765755,1761928242264,-1034.994222,0.0001498,2]
[392765756,1761928242274,-151.0,0.0001498,2]
[392765757,1761928242283,-151.0,0.0001498,2]
[392765758,1761928242292,-1034.994222,0.0001498,2]
[392765759,1761928242302,-151.0,0.0001498,2]
[392765760,1761928242311,-151.0,0.0001498,2]
[392765761,1761928242321,-1034.994222,0.0001498,2]
[392765762,1761928242330,-151.0,0.0001498,2]
[392765763,1761928242339,-151.0,0.0001498,2]
[392765764,1761928242349,-158.442601,0.0001498,2]
[392765765,1761928242358,-220.381975,0.0001498,2]
[392765766,1761928242367,-220.381975,0.0001498,2]
[392765767,1761928242377,-220.381975,0.0001498,2]
[392765768,1761928242387,-220.381975,0.0001498,2]
[392765769,1761928242397,-152.771293,0.0001498,2]
[392765770,1761928242410,-220.381975,0.0001498,2]
[392765771,1761928242419,-220.381975,0.0001498,2]
[392765772,1761928242429,-220.381975,0.0001498,2]
[392765773,1761928242438,-220.381975,0.0001498,2]
[392765774,1761928242448,-153.429283,0.0001498,2]
[392765775,1761928242457,-151.0,0.0001498,2]
[392765776,1761928242467,-154.831578,0.0001498,2]
[392765777,1761928242479,-329.583025,0.0001498,2]
[392765778,1761928242489,-329.583025,0.0001498,2]
[392765779,1761928242499,-329.583025,0.0001498,2]
[392765780,1761928242508,-329.583025,0.0001498,2]
[392765781,1761928242517,-329.583025,0.0001498,2]
[392765782,1761928242527,-151.0,0.0001498,2]
[392765783,1761928242536,-329.583025,0.0001498,2]
[392765784,1761928242545,-151.0,0.0001498,2]
[392765785,1761928242554,-329.583025,0.0001498,2]
[392765786,1761928242563,-329.583025,0.0001498,2]
[392765788,1761928242573,-160.181407,0.0001498,2]
[392765790,1761928242582,-156.746692,0.0001498,2]
[392765792,1761928242591,-151.0,0.0001498,2]
[392765793,1761928242600,-151.0,0.0001498,2]
[392765796,1761928242609,-156.543432,0.0001498,2]
[392765798,1761928242618,-152.55367,0.0001498,2]
[392765800,1761928242627,-253.982447,0.0001498,2]
[392765802,1761928242636,-253.982447,0.0001498,2]
[392765804,1761928242646,-154.123846,0.0001498,2]
[392765806,1761928242659,-253.982447,0.0001498,2]
[392765808,1761928242668,-253.982447,0.0001498,2]
[392765810,1761928242678,-151.0,0.0001498,2]
[392765812,1761928242687,-151.0,0.0001498,2]
[392765814,1761928242697,-253.982447,0.0001498,2]
[392765817,1761928242707,-253.982447,0.0001498,2]
[392765820,1761928242716,-151.0,0.0001498,2]
[392765822,1761928242725,-151.0,0.0001498,2]
[392765824,1761928242735,-253.982447,0.0001498,2]
[392765827,1761928242744,-253.982447,0.0001498,2]
[392765829,1761928242753,-151.0,0.0001498,2]
[392765832,1761928242762,-151.0,0.0001498,2]
[392765835,1761928242772,-151.0,0.0001498,2]
[392765837,1761928242781,-151.0,0.0001498,2]
[392765840,1761928242791,-151.0,0.0001498,2]
[392765841,1761928242800,-650.15126,0.0001498,2]
[392765843,1761928242809,-650.15126,0.0001498,2]
[392765845,1761928242820,-650.15126,0.0001498,2]
[392765848,1761928242830,-650.15126,0.0001498,2]
[392765850,1761928242840,-650.15126,0.0001498,2]
[392765851,1761928242850,-650.15126,0.0001498,2]
[392765853,1761928242859,-650.15126,0.0001498,2]
[392765855,1761928242869,-151.0,0.0001498,2]
[392765857,1761928242878,-650.15126,0.0001498,2]
[392765859,1761928242888,-151.0,0.0001498,2]
[392765861,1761928242897,-151.0,0.0001498,2]
[392765863,1761928242907,-156.923785,0.0001498,2]
[392765865,1761928242916,-151.0,0.0001498,2]
[392765867,1761928242925,-151.0,0.0001498,2]
[392765869,1761928242935,-151.0,0.0001498,2]
[392765871,1761928242944,-151.0,0.0001498,2]
[392765873,1761928242954,-151.0,0.0001498,2]
[392765875,1761928242962,-151.0,0.0001498,2]
[392765877,1761928242972,-151.0,0.0001498,2]
[392765879,1761928242981,-151.0,0.0001498,2]
[392765880,1761928242991,-151.0,0.0001498,2]
[392765882,1761928243001,-151.0,0.0001498,2]
[392765886,1761928243028,-154.895722,0.0001498,2]
[392765888,1761928243037,-373.335338,0.0001498,2]
[392765889,1761928243046,-373.335338,0.0001498,2]
[392765891,1761928243055,-314.46021,0.0001498,2]
[392765893,1761928243066,-314.46021,0.0001498,2]
[392765895,1761928243075,-373.335338,0.0001498,2]
[392765897,1761928243084,-154.47121,0.0001498,2]
[392765899,1761928243093,-373.335338,0.0001498,2]
[392765901,1761928243102,-314.46021,0.0001498,2]
[392765903,1761928243111,-373.335338,0.0001498,2]
[392765905,1761928243120,-314.46021,0.0001498,2]
[392765907,1761928243129,-373.335338,0.0001498,2]
[392765909,1761928243139,-314.46021,0.0001498,2]
[392765911,1761928243148,-373.335338,0.0001498,2]
[392765912,1761928243160,-314.46021,0.0001498,2]
[392765913,1761928243169,-373.335338,0.0001498,2]
[392765915,1761928243178,-314.46021,0.0001498,2]
[392765916,1761928243190,-314.46021,0.0001498,2]
[392765918,1761928243199,-156.55006,0.0001498,2]
[392765920,1761928243208,-151.0,0.0001498,2]
[392765922,1761928243217,-151.0,0.0001498,2]
[392765924,1761928243226,-151.0,0.0001498,2]
[392765926,1761928243235,-193.01178975,0.00014986,2]
[392765928,1761928243244,-196.30451484,0.00014986,2]
[392765930,1761928243254,-150.0,0.00014986,2]
[392765932,1761928243263,-160.27956323,0.00014986,2]
[392765934,1761928243272,-150.00000001,0.00014986,2]
[392765936,1761928243281,-157.02041754,0.00014986,2]
[392765938,1761928243291,-228.66231238,0.00014986,2]
[392765940,1761928243300,-173.4848323,0.00014986,2]
[392765941,1761928243310,-156.69002569,0.00014986,2]
[392765943,1761928243319,-290.10043058,0.00014986,2]
[392765945,1761928243330,-156.80799875,0.00014986,2]
[392765946,1761928243339,-274.54088779,0.00014986,2]
[392765947,1761928243349,-1086.22353513,0.0001499,2]
[392765948,1761928243358,-150.0,0.00014991,2]
[392765949,1761928243368,-500.0,0.00014991,2]
[392765950,1761928243378,-500.0,0.00014991,2]
[392765951,1761928243388,-257.02911303,0.00014991,2]
[392765952,1761928243398,-150.0,0.00014991,2]
[392765953,1761928243415,-150.0,0.00014991,2]
[392765954,1761928243424,-264.96595259,0.00014991,2]
[392765955,1761928243433,-150.83032951,0.00014991,2]
[392765956,1761928243445,-150.0,0.00014991,2]
[392765957,1761928243456,-150.0,0.00014991,2]
[392765958,1761928243466,-150.0,0.00014991,2]
[392765959,1761928243476,-500.0,0.00014991,2]
[392765960,1761928243488,-150.0,0.00014991,2]
[392765961,1761928243498,-150.0,0.00014991,2]
[392765962,1761928243508,-150.5811125,0.00014991,2]
[392765963,1761928243518,-150.0,0.00014991,2]
[392765964,1761928243527,-500.0,0.00014991,2]
[392765965,1761928243536,-150.0,0.00014991,2]
[392765966,1761928243546,-150.0,0.00014991,2]
[392765967,1761928243556,-150.0,0.00014991,2]
[392765968,1761928243566,-150.0,0.00014991,2]
[392765969,1761928243575,-500.0,0.00014991,2]
[392765970,1761928243584,-159.33962016,0.00014997,2]
[392765971,1761928243595,-500.0,0.00014999,2]
[392765972,1761928243605,-500.0,0.00014999,2]
[392765973,1761928243617,-500.0,0.00014999,2]
[392765974,1761928243628,-500.0,0.00014999,2]
[392765975,1761928243638,-500.0,0.00014999,2]
[392765976,1761928243648,-483.04510273,0.00014999,2]
[392765977,1761928243657,-500.0,0.00014999,2]
[392765978,1761928243667,-500.0,0.00014999,2]
[392765979,1761928243676,-500.0,0.00014999,2]
[392765980,1761928243686,-500.0,0.00014999,2]
[392765981,1761928243695,-500.0,0.00014999,2]
[392765982,1761928243705,-500.0,0.00014999,2]
[392765983,1761928243714,-500.0,0.00014999,2]
[392765984,1761928243723,-500.0,0.00014999,2]
[392765985,1761928243733,-500.0,0.00014999,2]
[392765986,1761928243743,-500.0,0.00014999,2]
[392765987,1761928243752,-500.0,0.00014999,2]
[392765988,1761928243762,-500.0,0.00014999,2]
[392765989,1761928243772,-500.0,0.00014999,2]
[392765990,1761928243782,-500.0,0.00014999,2]
[392765991,1761928243791,-334.8,0.00014999,2]
[392765992,1761928243801,-671.66837628,0.00014999,2]
[392765993,1761928243811,-249110.91665575,0.00015,2]
[392765994,1761928244433,-700.80486647,0.00015,2]
[392765995,1761928244500,-151.0,0.0001498,2]
[392765996,1761928244510,-1446.48375139,0.00015,2]
[392765997,1761928244521,-421.42282622,0.00015,2]
[392765998,1761928244552,-1117.116,0.00015,2]
[392765999,1761928244586,-150.0,0.00014973,2]
[392766000,1761928244601,-1938.69549693,0.00015,2]
[392766001,1761928244618,-693.7537393,0.00015,2]
[392766002,1761928245258,-150.0,0.00014973,2]
[392766003,1761928245269,-125.68429406,0.00015,2]
[392766004,1761928245281,-563.8722431,0.00015,2]
[392766005,1761928245293,-6259.1351273,0.00015,2]
[392766007,1761928245924,-151.0,0.0001498,2]
[392766008,1761928245934,-151.0,0.0001498,2]
[392766009,1761928245943,-814.0,0.00015,2]
[392766010,1761928245955,-5729.11243091,0.00015,2]
[392766011,1761928245978,-1210.32,0.00015,2]
[392766020,1761928246322,-4467.7242,0.00015,2]
[392766071,1761928353198,150.0,0.0001414,120]
[392766083,1761928638717,175.61,0.00012003,2]
[392766090,1761928958465,-160.19533334,0.00013699,2]
[392766093,1761929053546,-308.29466666,0.00013699,2]
[392766094,1761929053567,-90.78533334,0.00013765,2]
[392766096,1761929109947,150.0,0.00013488,2]
[392766097,1761929113971,151.00160076,0.00013488,2]
[392766098,1761929114023,150.0,0.00013488,2]
[392766099,1761929114132,150.0,0.00013488,2]
[392766100,1761929117092,150.0,0.00013488,2]
[392766101,1761929120519,150.0,0.00013488,2]
[392766102,1761929120671,150.0,0.00013488,2]
[392766103,1761929120807,150.0,0.00013488,2]
[392766104,1761929125041,150.97585933,0.00013488,2]
[392766105,1761929125117,150.00000001,0.00013488,2]
[392766106,1761929127452,150.0,0.00013488,2]
[392766107,1761929127649,151.28843054,0.00013488,2]
[392766108,1761929133964,150.0,0.00013488,2]
[392766109,1761929134074,150.0,0.00013488,2]
[392766110,1761929134356,150.0,0.00013488,2]
[392766114,1761929234701,500.0,0.00013,2]
[392766115,1761929235038,500.0,0.00013,2]
[392766116,1761929235109,600.0,0.00013,2]
[392766117,1761929235372,500.0,0.00013,2]
[392766118,1761929235408,600.0,0.00013,2]
[392766119,1761929235740,600.0,0.00013,2]
[392766120,1761929236002,500.0,0.00013,2]
[392766121,1761929236050,600.0,0.00013,2]
[392766122,1761929236337,500.0,0.00013,2]
[392766123,1761929236376,600.0,0.00013,2]
[392766124,1761929236693,500.0,0.00013,2]
[392766125,1761929236730,600.0,0.00013,2]
[392766126,1761929237006,500.0,0.00013,2]
[392766127,1761929237043,600.0,0.00013,2]
[392766128,1761929237101,500.0,0.00013,2]
[392766129,1761929237628,500.0,0.00013,2]
[392766130,1761929237666,600.0,0.00013,2]
[392766131,1761929238163,500.0,0.00013,2]
[392766132,1761929238252,500.0,0.00013,2]
[392766133,1761929238290,600.0,0.00013,2]
[392766134,1761929238330,500.0,0.00013,2]
[392766135,1761929238394,500.0,0.00013,2]
[392766136,1761929238450,600.0,0.00013,2]
[392766137,1761929238599,500.0,0.00013,2]
[392766138,1761929238647,600.0,0.00013,2]
[392766139,1761929238688,500.0,0.00013,2]
[392766140,1761929238739,500.0,0.00013,2]
[392766141,1761929238779,500.0,0.00012012,2]
[392766142,1761929238827,500.0,0.00013,2]
[392766143,1761929238857,-209.21466666,0.00013765,2]
[392766144,1761929238895,195.86046253,0.00013,2]
[392766145,1761929238918,304.13953747,0.00013,2]
[392766146,1761929238994,600.0,0.00013,2]
[392766147,1761929239035,500.0,0.00013,2]
[392766148,1761929239077,500.0,0.00012012,2]
[392766149,1761929239117,500.0,0.00013,2]
[392766150,1761929239228,600.0,0.00013,2]
[392766151,1761929239284,500.0,0.00013,2]
[392766152,1761929239321,500.0,0.00013,2]
[392766153,1761929239357,500.0,0.00012012,2]
[392766154,1761929239402,500.0,0.00013,2]
[392766155,1761929239582,600.0,0.00012012,2]
[392766156,1761929239628,500.0,0.00013,2]
[392766157,1761929239670,500.0,0.00012012,2]
[392766158,1761929239731,500.0,0.00013,2]
[392766159,1761929239858,500.0,0.00012012,2]
[392766160,1761929239984,500.0,0.00012012,2]
[392766161,1761929240023,500.0,0.00012012,2]
[392766162,1761929240063,500.0,0.00013,2]
[392766163,1761929240207,600.0,0.00012012,2]
[392766164,1761929240255,637.12104907,0.00012012,2]
[392766165,1761929240379,500.0,0.00013,2]
[392766166,1761929240760,809.0,0.00012012,2]
[392766167,1761929240852,500.0,0.00012012,2]
[392766168,1761929240921,600.0,0.00012012,2]
[392766169,1761929240999,-3448.91695114,0.00013748,2]
[392766170,1761929241033,-500.0,0.00013748,2]
[392766171,1761929241071,500.0,0.00013,2]
[392766172,1761929241138,500.0,0.00012012,2]
[392766173,1761929241174,600.0,0.00012012,2]
[392766174,1761929241243,500.0,0.00012012,2]
[392766175,1761929241322,600.0,0.00012012,2]
[392766176,1761929241375,500.0,0.00012012,2]
[392766177,1761929241470,500.0,0.00012012,2]
[392766178,1761929241559,600.0,0.00012012,2]
[392766179,1761929241665,500.0,0.00013,2]
[392766180,1761929241708,500.0,0.00012012,2]
[392766181,1761929241833,690.11455881,0.00012012,2]
[392766182,1761929241894,600.0,0.00012012,2]
[392766183,1761929242024,500.0,0.00013,2]
[392766184,1761929242061,500.0,0.00012012,2]
[392766185,1761929242228,317.08378585,0.00012012,2]
[392766186,1761929242260,282.91621415,0.00012012,2]
[392766187,1761929242385,502.89306301,0.00012012,2]
[392766188,1761929242428,500.0,0.00012012,2]
[392766189,1761929242571,600.0,0.00012012,2]
[392766190,1761929242751,500.0,0.00012012,2]
[392766191,1761929243007,600.0,0.00012012,2]
[392766192,1761929243083,500.0,0.00012012,2]
[392766193,1761929243354,600.0,0.00012012,2]
[392766194,1761929243405,500.0,0.00012012,2]
[392766195,1761929243667,1007.34352599,0.00012012,2]
[392766196,1761929243738,500.0,0.00012012,2]
[392766197,1761929244089,500.0,0.00012012,2]
[392766198,1761929244141,-354.77009464,0.00013748,2]
[392766199,1761929244422,500.0,0.00012012,2]
[392766200,1761929244757,500.0,0.00012012,2]
[392766201,1761929244860,500.0,0.00013,2]
[392766202,1761929245626,760.8210199,0.00012012,2]
[392766203,1761929245827,-588.88136813,0.00013748,2]
[392766204,1761929247302,500.0,0.00013,2]
[392766205,1761929247445,-588.88136813,0.00013748,2]
[392766206,1761929247657,500.0,0.00013,2]
[392766207,1761929247804,503.39467909,0.00013,2]
[392766208,1761929248029,500.0,0.00013,2]
[392766209,1761929248751,500.0,0.00013,2]
[392766210,1761929248796,500.0,0.00013,2]
[392766211,1761929248840,-373.44413251,0.00013748,2]
[392766212,1761929248901,500.0,0.00013,2]
[392766213,1761929248965,500.0,0.00013,2]
[392766214,1761929249139,501.30810166,0.00013,2]
[392766215,1761929249181,500.0,0.00013,2]
[392766216,1761929249220,500.0,0.00013,2]
[392766217,1761929249396,500.0,0.00013,2]
[392766218,1761929249439,500.0,0.00012012,2]
[392766219,1761929249506,500.0,0.00012012,2]
[392766220,1761929249770,500.0,0.00012012,2]
[392766221,1761929249810,500.0,0.00013,2]
[392766222,1761929250099,500.0,0.00013,2]
[392766223,1761929250139,500.0,0.00012012,2]
[392766224,1761929250191,-294.03232781,0.00013748,2]
[392766225,1761929250241,500.0,0.00012012,2]
[392766226,1761929250299,522.29472308,0.00012012,2]
[392766227,1761929250341,900.0,0.00012012,2]
[392766228,1761929250380,500.0,0.00012012,2]
[392766229,1761929250476,500.0,0.00012012,2]
[392766230,1761929250517,764.29506937,0.00012012,2]
[392766231,1761929250805,585.38074912,0.00012012,2]
[392766232,1761929263728,-264.77833166,0.00013748,2]
[392766233,1761929267894,-178.96996,0.00013748,2]
[392766234,1761929270110,-399.08,0.00013748,2]
[392766235,1761929273545,-354.77009464,0.00013748,2]
[392766236,1761929273617,-294.03232781,0.00013748,2]
[392766241,1761929423646,-103.54304353,0.00013748,2]
[392766242,1761929423670,-200.0,0.00013765,2]
[392766243,1761929423696,-250.0,0.00013773,2]
[392766244,1761929423720,-69.69687081,0.00013798,2]
[392766245,1761929427599,-750.0,0.00013798,2]
[392766246,1761929429937,-750.0,0.00013798,2]
[392766247,1761929430136,-217.60937087,0.00013798,2]
[392766263,1761929431866,-1001.08994506,0.00013798,2]
[392766264,1761929431879,-556.7562,0.00013798,2]
[392766265,1761929431917,-976.30153939,0.00013798,2]
[392766266,1761929431928,-200.0,0.00013903,2]
[392766267,1761929431938,-545.0,0.00013946,2]
[392766268,1761929431948,-300.0,0.00013946,2]
[392766269,1761929431959,-641.15495977,0.00013946,2]
[392766270,1761929432005,-300.0,0.00013946,2]
[392766271,1761929432017,-258.84504023,0.00013946,2]
[392766272,1761929432027,-4324.04734224,0.00013947,2]
[392766273,1761929432060,-701.61386136,0.00013947,2]
[392766274,1761929432072,-1328.1687964,0.00013947,2]
[392766275,1761929432087,-153.26,0.00013964,2]
[392766276,1761929432098,-250.0,0.00014,2]
[392766277,1761929432108,-228.02,0.00014027,2]
[392766278,1761929432118,-320.18,0.00014027,2]
[392766279,1761929432128,-200.0,0.00014042,2]
[392766280,1761929432138,-5295.59655488,0.0001409,2]
[392766281,1761929432155,-347.33383686,0.0001409,2]
[392766282,1761929432184,-403.06153458,0.0001409,2]
[392766382,1761929438001,-888.98807368,0.0001409,2]
[392766383,1761929438017,-150.0,0.0001414,2]
[392766384,1761929438028,-200.0,0.00014182,2]
[392766385,1761929438039,-150.0,0.00014237,2]
[392766386,1761929438049,-150.0,0.00014237,2]
[392766387,1761929438060,-151.0,0.00014246,2]
[392766388,1761929438071,-621.14687548,0.00014246,2]
[392766389,1761929438086,-152.63049321,0.00014246,2]
[392766390,1761929438097,-578.20924308,0.00014246,2]
[392766391,1761929438108,-277.35679052,0.00014246,2]
[392766392,1761929438119,-200.0,0.00014324,2]
[392766393,1761929438129,-500.0,0.00014384,2]
[392766394,1761929438141,-150.0,0.00014503,2]
[392766395,1761929438152,-3463.23468703,0.00014504,2]
[392766396,1761929438166,-4210.1625363,0.00014504,2]
[392766397,1761929438180,-2326.59277667,0.00014504,2]
[392766398,1761929438190,-1588.56,0.00014504,2]
[392766399,1761929438201,-999.99,0.00014504,2]
[392766400,1761929438213,-5786.18,0.00014504,2]
[392766401,1761929438224,-9162.89512006,0.00014504,2]
[392766402,1761929438235,-837.09487994,0.00014504,2]
[392766403,1761929438245,-5154.2,0.00014504,2]
[392766404,1761929438255,-892.67338722,0.00014533,2]